bitfinex/quotes_SOLUSD_20240705
["timestamp","ask_amount","ask_price","bid_price","bid_amount"]
[1720189066901,15.0,132.1,132.09,26.4957]
[1720189067233,15.0,132.12,132.1,7.5697]
[1720189067405,15.0,132.12,132.09,26.4955]
[1720189067817,15.0,132.12,132.1,7.57]
[1720189068028,15.0,132.14,132.12,18.9218]
[1720189068201,15.0,132.14,132.12,26.4906]
[1720189068525,15.0,132.14,132.12,26.4905]
[1720189068819,15.0,132.14,132.12,18.9218]
[1720189069125,15.0,132.14,132.12,26.4905]
[1720189069826,15.0,132.14,132.12,18.9218]
[1720189070231,15.0,132.14,132.11,7.5692]
[1720189070532,15.0,132.12,132.1,7.5697]
[1720189071618,15.0,132.14,132.11,7.5694]
[1720189071802,15.0,132.14,132.13,7.5683]
[1720189072116,15.0,132.16,132.13,18.9207]
[1720189072326,15.0,132.16,132.14,7.5674]
[1720189072502,14.142,132.18,132.14,7.5674]
[1720189072834,15.0,132.16,132.13,26.4887]
[1720189072998,15.0,132.16,132.13,18.9207]
[1720189073204,15.0,132.16,132.14,7.5676]
[1720189074227,15.0,132.16,132.1,18.9238]
[1720189074524,15.0,132.14,132.11,7.5691]
[1720189075008,15.0,132.12,132.1,26.4936]
[1720189075218,15.0,132.14,132.11,7.5694]
[1720189075414,15.0,132.14,132.1,18.9238]
[1720189075415,15.0,132.14,132.1,26.4935]
[1720189075722,7.5674,132.15,132.1,26.4935]
[1720189075723,15.0,132.12,132.1,26.4935]
[1720189076419,15.0,132.16,132.12,18.9216]
[1720189076817,20.0,132.17,132.09,122.73]
[1720189077015,15.0,132.16,132.14,7.5675]
[1720189077321,15.0,132.16,132.14,7.5674]
[1720189077637,20.0,132.17,132.15,7.5671]
[1720189077826,15.0,132.16,132.14,7.5673]
[1720189078029,15.0,132.16,132.13,18.9197]
[1720189078200,15.0,132.14,132.12,7.5686]
[1720189078397,15.0,132.14,132.11,7.569]
[1720189078615,15.0,132.16,132.12,7.5688]
[1720189078825,15.0,132.16,132.08,6.3236]
[1720189079002,22.5667,132.16,132.11,7.5691]
[1720189079205,15.0,132.16,132.13,7.5682]
[1720189079797,15.0,132.16,132.11,18.9232]
[1720189080002,22.5665,132.16,132.11,26.4924]
[1720189080218,15.0,132.16,132.12,7.5686]
[1720189080423,15.0,132.16,132.13,7.5682]
[1720189080622,20.0,132.17,132.08,166.9078]
[1720189080825,15.0,132.14,132.13,18.9206]
[1720189081044,15.0,132.14,132.08,44.1778]
[1720189081329,15.0,132.14,132.12,18.922]
[1720189081542,15.0,132.12,132.1,7.5694]
[1720189081837,15.0,132.14,132.09,18.9251]
[1720189082015,15.0,132.12,132.1,7.5696]
[1720189082419,15.0,132.14,132.11,7.5694]
[1720189082625,15.0,132.12,132.1,7.5697]
[1720189082932,15.0,132.14,132.12,7.5685]
[1720189083126,15.0,132.12,132.08,18.9266]
[1720189083329,15.0,132.1,132.05,44.4064]
[1720189083515,15.0,132.12,132.05,144.4064]
[1720189083716,15.0,132.12,132.09,7.5702]
[1720189083914,15.0,132.12,132.09,26.496]
[1720189084427,15.0,132.12,132.09,18.9258]
[1720189084617,15.0,132.12,132.1,7.5698]
[1720189085026,20.0,132.17,132.05,144.4064]
[1720189085027,15.0,132.1,132.07,7.5715]
[1720189085241,15.0,132.08,132.06,26.5023]
[1720189085537,15.0,132.11,132.08,7.571]
[1720189085723,15.0,132.09,132.07,7.5715]
[1720189085922,15.0,132.07,132.03,18.934]
[1720189086238,6.372,132.11,132.04,7.5732]
[1720189086239,15.0,132.05,132.04,7.5732]
[1720189086437,15.0,132.05,132.03,26.5079]
[1720189086644,15.0,132.05,131.99,54.4454]
[1720189086645,15.0,132.05,132.01,7.5747]
[1720189086935,15.0,132.03,132.01,7.5747]
[1720189087314,15.0,132.03,132.0,26.5135]
[1720189087520,7.5729,132.05,132.0,26.5135]
[1720189087521,22.5729,132.05,132.0,26.5135]
[1720189087714,7.7435,132.04,132.0,18.9382]
[1720189087915,15.0,132.07,132.0,18.9382]
[1720189088139,15.0,132.05,132.02,7.5742]
[1720189088712,15.0,132.03,132.02,7.5742]
[1720189089122,15.0,132.05,132.02,18.9356]
[1720189089322,13.9416,132.11,132.06,7.5723]
[1720189089533,15.0,132.1,132.06,7.5723]
[1720189089742,13.9416,132.11,132.06,7.5723]
[1720189089743,15.0,132.08,132.06,18.9306]
[1720189089932,15.0,132.08,132.02,37.8728]
[1720189090129,15.0,132.06,132.05,7.5728]
[1720189090516,15.0,132.06,132.04,7.5732]
[1720189091045,15.0,132.06,132.03,18.9338]
[1720189091214,15.0,132.04,132.02,7.5745]
[1720189091540,15.0,132.04,132.01,7.575]
[1720189091922,15.0,132.04,132.02,7.5745]
[1720189092128,15.0,132.04,132.01,7.5747]
[1720189092335,15.0,132.04,132.02,7.5746]
[1720189092743,15.0,132.04,132.02,26.5109]
[1720189093153,15.0,132.04,132.02,18.9363]
[1720189093435,22.89496389,132.06,132.03,7.574]
[1720189093625,15.0,132.06,132.03,7.574]
[1720189093822,15.0,132.06,132.04,7.5734]
[1720189094029,15.0,132.06,132.03,7.5738]
[1720189094221,15.0,132.06,132.03,7.5736]
[1720189094637,15.0,132.06,132.04,7.5734]
[1720189095029,22.89869787,132.08,132.05,7.5728]
[1720189095216,22.89869787,132.08,132.06,7.5719]
[1720189095417,15.0,132.08,132.04,18.9335]
[1720189095923,15.0,132.06,132.04,18.9335]
[1720189096422,15.0,132.06,132.01,56.8117]
[1720189096630,15.0,132.06,132.02,7.5744]
[1720189096819,15.0,132.04,132.02,7.5744]
[1720189097224,15.0,132.06,132.03,7.5738]
[1720189097435,15.0,132.06,132.02,7.5745]
[1720189097615,15.0,132.02,131.98,18.941]
[1720189097814,15.0,131.99,131.95,56.8369]
[1720189098018,15.0,131.99,131.95,26.5236]
[1720189098514,15.0,131.99,131.94,7.5791]
[1720189098715,15.0,131.97,131.93,7.5795]
[1720189098936,15.0,131.97,131.92,18.9499]
[1720189099237,15.0,131.95,131.91,19.052]
[1720189099558,7.5786,131.95,131.91,0.1]
[1720189099764,33.9299,131.96,131.91,7.6807]
[1720189099921,15.0,131.93,131.91,0.1]
[1720189100246,15.0,131.95,131.91,7.6808]
[1720189100429,15.0,131.93,131.91,7.6808]
[1720189100745,33.9299,131.96,131.91,7.6808]
[1720189100746,26.1817,131.96,131.92,7.5801]
[1720189100926,41.1817,131.96,131.93,7.5797]
[1720189101439,41.1817,131.96,131.91,26.6323]
[1720189101440,15.0,131.94,131.91,26.6323]
[1720189101645,15.0,131.94,131.92,7.5803]
[1720189101942,15.0,131.94,131.91,19.0515]
[1720189101943,15.0,131.94,131.93,7.5797]
[1720189102125,41.1817,131.96,131.93,7.5797]
[1720189102444,35.0,131.96,131.93,7.5797]
[1720189102746,15.0,131.96,131.93,26.5286]
[1720189102923,15.0,131.96,131.91,0.1]
[1720189103125,15.0,131.96,131.91,7.6805]
[1720189103329,15.0,131.96,131.92,7.5803]
[1720189103744,21.2266,131.99,131.91,0.1]
[1720189103940,21.2266,131.99,131.94,18.9472]
[1720189104249,21.2266,131.99,131.95,7.5782]
[1720189104431,21.2266,131.99,131.94,18.9472]
[1720189104626,15.0,131.99,131.96,18.9449]
[1720189104824,33.9296,132.07,131.94,100.0]
[1720189104825,15.0,132.01,131.94,100.0]
[1720189107248,22.89577077,132.05,131.97,15.7978]
[1720189108027,22.89577077,132.05,132.01,18.9372]
[1720189108225,22.89577077,132.05,132.02,7.5744]
[1720189108444,22.89577077,132.05,132.03,18.9346]
[1720189108445,7.89577077,132.05,132.03,18.9346]
[1720189108646,15.0,132.07,132.03,18.9346]
[1720189108858,15.0,132.05,132.0,18.9385]
[1720189109354,15.0,132.05,132.03,7.5737]
[1720189109859,15.0,132.05,132.02,26.5106]
[1720189110538,15.0,132.03,132.01,7.5751]
[1720189111142,15.0,132.03,132.0,7.5755]
[1720189111348,15.0,132.03,131.99,26.5159]
[1720189111552,7.5738,132.04,131.99,26.5159]
[1720189111553,15.0,132.01,131.99,26.5159]
[1720189112751,15.0,132.01,132.0,7.5757]
[1720189113135,15.0,132.03,132.0,7.5757]
[1720189113339,15.0,132.05,132.01,18.9379]
[1720189113663,15.0,132.05,132.03,7.5736]
[1720189113830,15.0,132.03,132.02,7.5744]
[1720189114147,15.0,132.05,132.02,7.5744]
[1720189114558,15.0,132.03,132.01,26.5129]
[1720189114794,15.0,132.03,132.0,7.5752]
[1720189115063,14.34333968,132.08,131.99,7.5761]
[1720189115064,15.0,132.01,131.99,7.5761]
[1720189115235,15.0,132.01,131.96,26.5225]
[1720189115438,22.5763,131.99,131.95,7.5781]
[1720189115651,15.0,131.99,131.96,7.5779]
[1720189115970,15.0,131.94,131.91,0.1]
[1720189116166,15.0,131.92,131.91,0.1]
[1720189116338,15.0,131.93,131.91,7.6808]
[1720189116540,15.0,131.93,131.91,0.1]
[1720189116942,15.0,131.93,131.91,7.6808]
[1720189117972,15.0,131.93,131.92,7.5803]
[1720189118870,15.0,131.93,131.91,7.6808]
[1720189119246,15.0,131.93,131.92,7.5803]
[1720189119759,15.0,131.93,131.91,0.1]
[1720189120160,15.0,131.93,131.92,7.5803]
[1720189120466,15.0,131.93,131.91,7.6807]
[1720189120660,15.0,131.93,131.92,7.5803]
[1720189121268,22.90473751,131.97,131.94,7.5792]
[1720189121446,22.90473751,131.97,131.91,0.1]
[1720189121766,15.0,131.97,131.95,18.9462]
[1720189122145,15.0,131.97,131.96,7.578]
[1720189124846,15.0,131.94,131.93,26.5291]
[1720189125067,15.0,131.96,131.95,26.5251]
[1720189125946,15.0,131.98,131.97,26.521]
[1720189128572,7.90117386,132.01,131.94,7.5788]
[1720189128573,15.0,131.96,131.94,7.5788]
[1720189128757,15.0,131.96,131.93,26.5288]
[1720189128964,15.0,131.94,131.93,26.5288]
[1720189129266,15.0,131.97,131.95,7.5785]
[1720189129652,15.0,131.95,131.94,7.5789]
[1720189129845,15.0,131.95,131.93,26.5287]
[1720189130048,15.0,131.97,131.95,18.9459]
[1720189130266,15.0,131.97,131.95,26.5243]
[1720189130572,15.0,131.97,131.95,18.9459]
[1720189130753,15.0,131.94,131.93,7.5795]
[1720189130956,15.0,131.97,131.94,7.5791]
[1720189131163,15.0,131.97,131.95,7.5785]
[1720189132890,15.0,131.97,131.94,7.579]
[1720189133180,15.0,131.96,131.92,7.5802]
[1720189133767,15.0,131.94,131.91,26.6329]
[1720189134380,20.0,131.93,131.91,26.6329]
[1720189134683,20.0,131.93,131.91,0.1]
[1720189134684,15.0,131.92,131.91,0.1]
[1720189135478,35.0,131.92,131.91,0.1]
[1720189135670,35.0,131.92,131.87,18.9579]
[1720189135671,15.0,131.89,131.87,18.9579]
[1720189135849,20.0,131.92,131.84,0.8646939]
[1720189135850,15.0,131.87,131.84,0.8646939]
[1720189136057,15.0,131.86,131.84,0.8646939]
[1720189136253,15.0,131.86,131.84,8.4492939]
[1720189136551,15.0,131.86,131.84,0.8646939]
[1720189138379,27.7543,131.85,131.84,0.2911971]
[1720189138562,27.7543,131.85,131.84,1e-08]
[1720189138984,20.17,131.85,131.84,1e-08]
[1720189139370,20.17,131.85,131.81,0.1]
[1720189139371,15.0,131.82,131.81,0.1]
[1720189140274,15.0,131.84,131.81,19.0662]
[1720189140470,15.0,131.84,131.83,7.5855]
[1720189140782,15.0,131.88,131.81,0.1]
[1720189140953,15.0,131.88,131.85,18.9606]
[1720189141160,22.5828,131.88,131.83,7.5851]
[1720189141359,15.0,131.84,131.81,0.1]
[1720189141578,15.0,131.82,131.81,0.1]
[1720189142187,35.0,131.82,131.81,0.1]
[1720189142992,42.5861,131.82,131.81,0.1]
[1720189143166,42.7561,131.82,131.81,0.1]
[1720189143891,35.0,131.82,131.81,0.1]
[1720189144069,15.0,131.82,131.81,0.1]
[1720189144814,15.17,131.82,131.81,0.1]
[1720189144995,23.07418769,131.82,131.81,0.1]
[1720189145564,43.07418769,131.82,131.81,0.1]
[1720189146594,15.0,131.74,131.73,18.977]
[1720189146791,15.0,131.74,131.71,0.9646939]
[1720189147075,15.0,131.72,131.71,0.9646939]
[1720189147478,15.0,131.74,131.71,8.5570939]
[1720189147679,15.0,131.72,131.71,0.9646939]
[1720189147888,22.5909,131.74,131.71,0.9646939]
[1720189148192,15.0,131.72,131.71,0.9646939]
[1720189149067,35.0,131.72,131.71,0.9646939]
[1720189150368,35.17,131.72,131.71,0.9646939]
[1720189151375,42.5918,131.72,131.71,0.9646939]
[1720189152096,15.0,131.68,131.65,26.5839]
[1720189152877,15.0,131.66,131.63,7.5966]
[1720189153187,15.0,131.66,131.64,7.5964]
[1720189154194,15.0,131.68,131.64,18.9911]
[1720189154408,15.0,131.7,131.68,7.5938]
[1720189154598,15.0,131.7,131.67,7.5945]
[1720189155077,15.0,131.68,131.65,7.5954]
[1720189155401,15.0,131.68,131.64,7.5962]
[1720189155897,15.0,131.68,131.65,7.5957]
[1720189156098,15.0,131.68,131.67,7.5947]
[1720189156298,15.0,131.68,131.64,7.596]
[1720189156477,15.0,131.68,131.65,7.5958]
[1720189156677,15.0,131.68,131.64,7.5963]
[1720189157085,15.0,131.66,131.64,7.5963]
[1720189157298,15.0,131.66,131.63,18.9912]
[1720189157505,15.0,131.66,131.62,7.5972]
[1720189157670,22.5954,131.66,131.61,48.6747]
[1720189157876,15.0,131.66,131.62,7.5971]
[1720189158110,15.0,131.64,131.62,7.5971]
[1720189158395,15.0,131.68,131.62,37.9867]
[1720189158580,15.0,131.68,131.65,18.9889]
[1720189158902,15.0,131.68,131.67,7.5947]
[1720189159590,7.88854619,131.72,131.71,7.5924]
[1720189159828,18.9637,131.84,131.75,26.5647]
[1720189159829,7.5873,131.8,131.75,26.5647]
[1720189159993,7.89712562,131.8,131.77,7.5888]
[1720189160177,15.0,131.82,131.77,18.972]
[1720189160376,15.0,131.82,131.78,7.5883]
[1720189160890,15.0,131.82,131.77,18.972]
[1720189161206,15.0,131.82,131.77,7.5884]
[1720189161374,15.0,131.82,131.78,7.5883]
[1720189161578,22.5861,131.82,131.77,7.5888]
[1720189161880,15.0,131.8,131.77,7.5888]
[1720189162601,15.0,131.78,131.68,37.9694]
[1720189162810,20.0,131.77,131.68,37.9694]
[1720189162980,15.0,131.76,131.69,18.9828]
[1720189163183,15.0,131.76,131.71,18.9806]
[1720189163381,15.0,131.76,131.68,37.9694]
[1720189163382,15.0,131.78,131.74,7.5902]
[1720189163593,15.0,131.74,131.68,37.9694]
[1720189163799,15.0,131.74,131.7,18.9814]
[1720189165096,15.0,131.74,131.72,7.5917]
[1720189165294,15.0,131.76,131.73,7.5907]
[1720189165599,15.0,131.76,131.72,18.9782]
[1720189165809,15.0,131.74,131.7,7.5928]
[1720189166004,15.0,131.74,131.71,7.592]
[1720189166194,15.0,131.76,131.73,7.5912]
[1720189166382,15.0,131.74,131.72,7.5916]
[1720189167211,15.0,131.8,131.71,37.96]
[1720189167382,15.0,131.78,131.75,18.9746]
[1720189167783,15.0,131.78,131.75,26.5646]
[1720189168081,15.0,131.81,131.78,18.9701]
[1720189168299,15.0,131.81,131.78,26.5583]
[1720189168498,15.0,131.81,131.77,7.5887]
[1720189168909,15.0,131.81,131.78,7.5883]
[1720189169105,15.0,131.81,131.79,7.5878]
[1720189169401,18.61589767,131.83,131.82,7.5861]
[1720189169903,18.61589767,131.83,131.81,26.5526]
[1720189170293,21.36288252,131.88,131.85,7.5842]
[1720189170483,15.0,131.9,131.85,7.5842]
[1720189170806,15.0,131.9,131.83,18.9625]
[1720189170807,15.0,131.88,131.84,7.5848]
[1720189171210,15.0,131.88,131.85,7.5843]
[1720189171401,15.0,131.88,131.84,7.5847]
[1720189171718,7.5822,131.89,131.83,26.5478]
[1720189172008,15.0,131.89,131.85,7.5838]
[1720189172327,15.0,131.89,131.83,18.9625]
[1720189172328,15.0,131.87,131.83,18.9625]
[1720189172497,15.0,131.87,131.84,7.5845]
[1720189172694,15.0,131.87,131.85,7.584]
[1720189173007,15.0,131.87,131.84,7.5848]
[1720189173210,15.0,131.87,131.83,18.9625]
[1720189173211,15.0,131.85,131.83,26.5479]
[1720189173388,15.0,131.85,131.83,18.9625]
[1720189173585,15.0,131.83,131.81,7.5865]
[1720189173790,15.0,131.83,131.8,18.9681]
[1720189174107,15.0,131.84,131.81,7.5865]
[1720189174405,7.5839,131.86,131.82,18.9639]
[1720189174406,15.0,131.86,131.82,18.9639]
[1720189174614,15.0,131.86,131.77,37.9434]
[1720189174805,15.0,131.84,131.8,7.5867]
[1720189175007,15.0,131.82,131.8,7.5867]
[1720189175212,15.0,131.82,131.79,18.9691]
[1720189175510,7.5851,131.84,131.74,431.7981]
[1720189175511,15.0,131.8,131.74,431.7981]
[1720189175815,15.0,131.82,131.78,18.9707]
[1720189176115,15.0,131.8,131.78,26.5587]
[1720189176315,15.0,131.8,131.79,7.5878]
[1720189176518,15.0,131.8,131.78,26.5588]
[1720189177619,15.0,131.8,131.79,7.5878]
[1720189178113,15.0,131.84,131.81,7.5865]
[1720189178311,15.0,131.82,131.8,18.9676]
[1720189178620,15.0,131.84,131.8,18.9676]
[1720189178797,15.0,131.84,131.82,26.5508]
[1720189179123,15.0,131.82,131.79,18.9684]
[1720189179325,15.0,131.84,131.79,18.9684]
[1720189179799,15.0,131.82,131.81,7.5864]
[1720189180224,6.32874916,131.88,131.76,18.9727]
[1720189180225,15.0,131.8,131.76,18.9727]
[1720189180398,15.0,131.82,131.79,7.5874]
[1720189180795,15.0,131.79,131.78,26.5589]
[1720189180998,15.0,131.79,131.75,18.9743]
[1720189181405,15.0,131.79,131.76,7.5891]
[1720189181621,15.0,131.79,131.75,18.9743]
[1720189181824,15.0,131.78,131.74,7.5903]
[1720189182118,7.5879,131.79,131.74,26.567]
[1720189182359,15.0,131.75,131.73,7.5908]
[1720189182544,7.5885,131.78,131.71,37.96]
[1720189182545,15.0,131.77,131.71,37.96]
[1720189182835,15.0,131.77,131.69,387.3]
[1720189182994,15.0,131.75,131.73,7.5912]
[1720189183198,15.0,131.75,131.72,18.9793]
[1720189183525,15.0,131.75,131.73,7.5908]
[1720189183726,15.0,131.73,131.72,26.5711]
[1720189185410,15.0,131.73,131.67,137.9719]
[1720189185411,15.0,131.81,131.74,18.9765]
[1720189185613,15.0,131.82,131.78,7.5882]
[1720189185806,15.0,131.82,131.71,100.0]
[1720189185807,15.0,131.82,131.8,7.5872]
[1720189186139,7.91095376,131.83,131.79,7.5876]
[1720189186140,15.0,131.8,131.79,7.5876]
[1720189186327,15.0,131.8,131.78,18.9706]
[1720189186719,15.0,131.78,131.77,7.5887]
[1720189187234,15.0,131.78,131.75,18.9743]
[1720189187449,15.0,131.78,131.76,7.5893]
[1720189187621,15.0,131.78,131.77,7.5889]
[1720189188228,15.0,131.78,131.76,7.5893]
[1720189188616,15.0,131.76,131.75,26.5642]
[1720189188837,15.0,131.76,131.72,18.9784]
[1720189189041,15.0,131.76,131.73,7.5909]
[1720189189349,15.0,131.74,131.73,7.5909]
[1720189190937,18.9653,131.82,131.75,7.5901]
[1720189190938,15.0,131.76,131.75,7.5901]
[1720189192344,15.0,131.76,131.74,18.9759]
[1720189193242,15.0,131.76,131.74,26.5665]
[1720189193642,15.0,131.76,131.74,18.9759]
[1720189195839,15.0,131.73,131.72,26.5711]
[1720189196446,15.0,131.75,131.73,7.5909]
[1720189196654,15.0,131.75,131.74,7.5907]
[1720189196837,15.0,131.75,131.74,26.5674]
[1720189197147,7.91975146,131.81,131.74,100.0]
[1720189197443,15.0,131.8,131.79,26.5573]
[1720189198123,15.0,131.8,131.79,18.9695]
[1720189198427,15.0,131.8,131.78,7.5882]
[1720189199345,15.0,131.8,131.78,26.559]
[1720189199952,15.0,131.8,131.79,7.5878]
[1720189200124,15.0,131.8,131.78,26.5589]
[1720189200325,15.0,131.78,131.77,7.5885]
[1720189200531,15.0,131.78,131.75,18.9738]
[1720189200726,15.0,131.78,131.77,7.5889]
[1720189201233,15.0,131.78,131.76,7.5893]
[1720189201434,15.0,131.8,131.73,44.4463]
[1720189201949,15.0,131.77,131.74,7.5905]
[1720189202121,15.0,131.74,131.73,18.9771]
[1720189202318,22.5897,131.76,131.71,7.592]
[1720189202518,22.5897,131.76,131.69,6.622]
[1720189202519,15.0,131.76,131.69,6.622]
[1720189202941,15.0,131.76,131.74,18.9767]
[1720189203131,15.0,131.76,131.74,26.5673]
[1720189203448,15.0,131.76,131.74,18.9767]
[1720189203924,15.0,131.76,131.75,7.5901]
[1720189204128,15.0,131.76,131.74,26.5671]
[1720189204640,15.0,131.8,131.77,7.5889]
[1720189204838,15.0,131.82,131.74,100.0]
[1720189205033,15.0,131.82,131.8,7.587]
[1720189205232,15.0,131.78,131.75,18.974]
[1720189205430,15.0,131.8,131.73,137.9543]
[1720189205646,15.0,131.8,131.78,26.5589]
[1720189206335,15.0,131.77,131.76,26.5632]
[1720189206530,15.0,131.77,131.76,18.9738]
[1720189206938,15.0,131.79,131.76,18.9738]
[1720189207137,15.0,131.79,131.78,7.5884]
[1720189207541,15.0,131.79,131.76,26.5627]
[1720189207744,15.0,131.77,131.74,7.5903]
[1720189208153,15.0,131.77,131.73,18.9771]
[1720189208352,15.0,131.77,131.74,7.5903]
[1720189208558,15.0,131.77,131.75,7.5899]
[1720189208858,15.0,131.77,131.74,7.5905]
[1720189209231,15.0,131.75,131.74,7.5905]
[1720189209451,15.0,131.75,131.73,26.5681]
[1720189209642,15.0,131.75,131.73,18.9771]
[1720189209840,15.0,131.73,131.66,12.55864411]
[1720189210036,15.0,131.71,131.64,37.9799]
[1720189210252,15.0,131.68,131.61,38.09]
[1720189210437,15.0,131.66,131.65,18.9886]
[1720189210637,15.0,131.68,131.65,18.9886]
[1720189211059,15.0,131.66,131.65,26.5841]
[1720189211744,15.0,131.66,131.61,0.1]
[1720189212059,15.0,131.64,131.61,0.1]
[1720189212264,15.0,131.64,131.61,7.6981]
[1720189212437,15.0,131.64,131.62,7.5975]
[1720189212734,15.0,131.64,131.61,26.6932]
[1720189213071,15.0,131.62,131.61,26.6932]
[1720189213448,15.0,131.64,131.61,26.6932]
[1720189213960,15.0,131.62,131.61,19.0952]
[1720189214554,15.0,131.62,131.61,0.1]
[1720189214758,22.5976,131.62,131.61,0.1]
[1720189214960,7.5984,131.61,131.57,0.8646939]
[1720189215255,15.0,131.6,131.57,0.8646939]
[1720189215459,15.0,131.58,131.57,0.8646939]
[1720189216262,35.0,131.58,131.57,0.8646939]
[1720189216467,15.0,131.54,131.51,19.1091]
[1720189216639,15.0,131.56,131.54,7.6021]
[1720189217054,15.0,131.56,131.53,19.0067]
[1720189217240,15.0,131.58,131.56,7.6008]
[1720189217453,15.0,131.58,131.57,7.6005]
[1720189217764,15.0,131.58,131.56,7.6009]
[1720189218070,15.0,131.62,131.53,122.73]
[1720189218247,21.4539,131.64,131.55,100.0]
[1720189218440,15.0,131.64,131.61,18.9948]
[1720189218743,15.0,131.7,131.69,7.5935]
[1720189219046,15.0,131.7,131.68,7.5941]
[1720189219253,15.0,131.7,131.69,7.5935]
[1720189219452,3.75778903,131.73,131.7,7.5925]
[1720189219655,3.75778903,131.73,131.66,37.9759]
[1720189219841,3.75778903,131.73,131.72,7.5918]
[1720189220067,3.75778903,131.73,131.71,26.5726]
[1720189220243,7.88414099,131.77,131.74,7.5906]
[1720189220439,7.88414099,131.77,131.75,7.5896]
[1720189220640,15.0,131.78,131.76,7.5895]
[1720189220858,15.0,131.76,131.75,18.9747]
[1720189221278,15.0,131.76,131.75,26.5647]
[1720189221451,15.0,131.76,131.75,18.9747]
[1720189221774,15.0,131.74,131.73,7.5912]
[1720189221957,7.88100605,131.8,131.73,7.5912]
[1720189221958,15.0,131.76,131.73,7.5912]
[1720189222275,15.0,131.76,131.72,18.9791]
[1720189222276,15.0,131.74,131.72,26.5708]
[1720189222572,15.0,131.74,131.73,7.5912]
[1720189222952,15.0,131.76,131.75,7.5901]
[1720189223667,15.0,131.84,131.79,7.5878]
[1720189223869,15.0,131.81,131.78,7.5882]
[1720189224080,15.0,131.81,131.78,26.5585]
[1720189224275,15.0,131.79,131.76,7.5893]
[1720189224575,15.0,131.77,131.76,7.5893]
[1720189225165,15.0,131.77,131.75,18.9746]
[1720189225559,15.0,131.76,131.72,18.9789]
[1720189225758,7.5885,131.78,131.69,37.9652]
[1720189225759,15.0,131.78,131.69,37.9652]
[1720189226068,15.0,131.79,131.76,18.9734]
[1720189226250,15.0,131.79,131.78,7.5884]
[1720189226754,15.0,131.81,131.79,7.5876]
[1720189226956,15.0,131.81,131.78,26.5587]
[1720189227179,15.0,131.81,131.78,18.9705]
[1720189227472,15.0,131.79,131.78,18.9705]
[1720189227871,15.0,131.79,131.75,18.9745]
[1720189228080,15.0,131.79,131.76,7.5894]
[1720189228369,15.0,131.76,131.75,26.5644]
[1720189228775,15.0,131.78,131.77,7.5889]
[1720189228961,15.0,131.78,131.76,7.589]
[1720189229166,15.0,131.78,131.75,26.5644]
[1720189229884,15.0,131.76,131.75,26.5644]